Cogmind - Beta 11 X8 @@@ ROGUE MODE // 2021.12.22 @ 12:31:44 Player: Judas Result: Destroyed by OJ-FHP(B) with Slug Cannon Performance ------------- Evolutions (5) 2500 Regions Visited (17) 3400 Robots Destroyed (179) 895 Value Destroyed (5721) 5721 Prototype IDs (31) 620 Alien Tech Used (0) 0 Bonus (2364) 2364 TOTAL SCORE: 15500 Bonus ------- High Alert Combat Kills 687 Follower Combat Kills 87 Entered Garrisons 400 Used RIF Installer 1000 Aligned with FarCom 300 Friendly Fire -110 Cogmind --------- Core Integrity 0/1000 Matter 216/300 Energy 100/100 System Corruption 0% Temperature Warm (105) Movement Core (700) Ox13 Location -5/Warlord Parts ------- > --- POWER (1) -------- (None) > --- PROPULSION (4) --- (None) > --- UTILITY (8) ------ High-capacity Storage Unit > --- WEAPON (4) ------- (None) > --- INVENTORY (20) --- Large Storage Unit High-capacity Matter Pod (200) Improved Target Analyzer System Guard Recalibrator Improved Assault Rifle Gauss Rifle Precision Assault Rifle Chainsword Peak State ------------ > --- POWER ------------ Cooled Deuterium Engine > --- PROPULSION ------- Armored Treads Armored Treads Armored Treads > --- UTILITY ---------- High-capacity Storage Unit Matter Compressor Advanced Weight Redist. System Advanced Visual Processing Unit Improved Shield Generator > --- WEAPON ----------- XL Autogun Array > --- INVENTORY -------- Improved Deuterium Engine Advanced Treads Improved Heat Shielding Large Storage Unit High-capacity Matter Pod Hacking Suite Recalibrator Improved Assault Rifle Precision Assault Rifle Precision Assault Rifle Precision Assault Rifle Precision Assault Rifle Flak Cannon Flak Cannon Flak Cannon Gauss Cannon Improved Grenade Launcher Missile Launcher Precision Rocket Launcher Chainsword [Rating: 73] Favorites ----------- Power Neutrino Core Engine Cooled Ion Engine Power Core Neutrino Core Propulsion Armored Treads Treads Armored Treads Leg Aluminum Leg Wheel Armored Huge Wheel Utility High-capacity Storage Unit Device Weapon Cycler Storage High-capacity Storage Unit Processor Advanced Visual Processing Unit Hackware Makeshift Hacking Suite Protection Insulated Plating Weapon Precision Assault Rifle Energy Gun Beam Rifle Energy Cannon Advanced Beam Cannon Ballistic Gun Precision Assault Rifle Ballistic Cannon Flak Cannon Launcher Precision Rocket Launcher Build | -11 -10 -10 -9 -9 -9 -8 -8 -7 -7 -7 -7 -7 -7 -5 -5 -5 -5 ------- Run | Scr Mat Min Mat Min Exi Min Mat Fac Gar Fac Sto Gar Rec Fac Upp Upp War Slots Evolved 10 | . . . 2 . . . 2 2 . . . . . 4 . . . Power . | . . . . . . . . . . . . . . . . . . Propulsion 2 | . . . . . . . 1 . . . . . . 1 . . . Utility 6 | . . . 1 . . . . 2 . . . . . 3 . . . Weapon 2 | . . . 1 . . . 1 . . . . . . . . . . Parts Attached 85 | 1 3 4 19 14 2 . 9 4 . 3 5 4 1 6 2 8 . Power 12 | . . . 3 1 . . 4 . . . 2 . . 1 . 1 . Engine 11 | . . . 3 1 . . 4 . . . 2 . . . . 1 . Core 1 | . . . . . . . . . . . . . . 1 . . . Reactor . | . . . . . . . . . . . . . . . . . . Propulsion 21 | . 2 2 5 3 . . 4 . . 2 2 . . 1 . . . Treads 17 | . . 2 5 2 . . 3 . . 2 2 . . 1 . . . Leg . | . . . . . . . . . . . . . . . . . . Wheel 4 | . 2 . . 1 . . 1 . . . . . . . . . . Hover . | . . . . . . . . . . . . . . . . . . Flight . | . . . . . . . . . . . . . . . . . . Utility 22 | 1 1 . 2 4 2 . . 4 . 1 1 . 1 3 2 . . Device 6 | 1 . . . . . . . 1 . . 1 . 1 2 . . . Storage 7 | . 1 . . 3 2 . . 1 . . . . . . . . . Processor 5 | . . . 2 1 . . . 1 . . . . . 1 . . . Hackware 1 | . . . . . . . . . . . . . . . 1 . . Protection 3 | . . . . . . . . 1 . 1 . . . . 1 . . Artifact . | . . . . . . . . . . . . . . . . . . Weapon 30 | . . 2 9 6 . . 1 . . . . 4 . 1 . 7 . Energy Gun 3 | . . 1 2 . . . . . . . . . . . . . . Energy Cannon 2 | . . . 1 1 . . . . . . . . . . . . . Ballistic Gun 13 | . . 1 3 3 . . 1 . . . . 4 . 1 . . . Ballistic Cannon 8 | . . . 3 1 . . . . . . . . . . . 4 . Launcher 4 | . . . . 1 . . . . . . . . . . . 3 . Special Weapon . | . . . . . . . . . . . . . . . . . . Impact Weapon . | . . . . . . . . . . . . . . . . . . Slashing Weapon . | . . . . . . . . . . . . . . . . . . Piercing Weapon . | . . . . . . . . . . . . . . . . . . Special Melee Weapon . | . . . . . . . . . . . . . . . . . . Unidentified Prototypes 8 | . . . 3 . . . . . . . 2 2 . . . 1 . Parts Lost 35 | . . . 1 8 . . 1 . . . . 2 . 2 1 20 . Power 4 | . . . . 1 . . 1 . . . . . . . . 2 . Propulsion 6 | . . . . 2 . . . . . . . . . 1 . 3 . Utility 13 | . . . 1 2 . . . . . . . 1 . 1 1 7 . Weapon 12 | . . . . 3 . . . . . . . 1 . . . 8 . Highest Loss Streak 12 | . . . 1 7 . . 1 . . . . 2 . 2 1 12 . Average Slot Usage (%) 77 | . 100 97 98 88 88 88 64 76 76 75 76 85 100 96 90 65 5 Engine 5 | . 14 14 11 10 11 11 8 7 7 7 7 7 7 2 . . . Core 1 | . . . . . . . . . . . . . . 2 5 4 . Treads 13 | . . 19 22 19 . . 7 23 23 22 23 23 23 21 17 4 . Wheel 2 | . 15 5 . 1 11 11 12 . . . . . . . . . . Device 6 | . 7 . . . . . . 6 7 7 11 11 15 21 12 9 . Storage 15 | . 20 28 22 19 22 22 18 15 15 15 15 15 15 11 11 10 5 Processor 8 | . . . 9 6 11 11 9 8 7 7 7 7 7 11 11 9 . Hackware 1 | . . . . . . . . . . . . . . . 2 4 . Protection 1 | . . . . . . . . 7 7 6 2 . . . 2 . . Energy Cannon 2 | . . . 8 6 11 11 . . . . . . . . . . . Ballistic Gun 13 | . 14 14 12 5 11 11 9 7 7 7 7 19 30 23 23 18 . Ballistic Cannon 3 | . . . 6 19 11 11 . . . . . . . . . . . Naked Turns . | . . . . . . . . . . . . . . . . . . Heaviest Build 87 | 13 15 17 32 38 68 68 69 77 77 77 78 75 75 83 87 79 40 Greatest Support 91 | 20 20 40 40 40 28 28 62 62 62 62 71 71 71 91 62 20 3 Greatest Overweight (x) 18 | . 1 . . 5 2 2 3 1 1 1 1 1 1 1 1 18 13 Average Overweight (x) 1 | . . . . . 1 2 1 1 1 1 1 . 1 . 1 4 13 Largest Inventory Capacity 20 | 8 8 8 8 10 20 20 20 20 20 20 20 20 20 20 20 20 20 Average Capacity 17 | 8 8 8 8 8 11 20 20 20 20 20 20 20 20 20 20 20 20 Most Carried 20 | 7 8 8 8 10 12 13 20 20 20 20 20 20 17 16 17 17 9 Average Carried 14 | 6 7 7 7 7 10 12 17 18 20 19 19 18 16 14 16 15 9 Final Capacity 20 | 8 8 8 8 10 20 20 20 20 20 20 20 20 20 20 20 20 20 Final Carried 20 | 7 8 8 8 10 12 13 20 20 20 20 20 20 17 16 17 9 9 Class Distribution -------------------- 42% | Gunner 26% | Skirmisher 14% | Tank 12% | Mutant Dominant Class ---------------- Mutant | -10/Materials Scavenger-Mutant | -10/Mines Gunner | -9/Materials Gunner | -9/Mines Gunner | -9/Exiles Skirmisher | -8/Mines Skirmisher | -8/Materials Tank | -7/Factory Tank | -7/Garrison Tank | -7/Factory Skirmisher | -7/Storage Skirmisher | -7/Garrison Skirmisher | -7/Recycling Gunner | -5/Factory Gunner | -5/Upper Caves Gunner | -5/Upper Caves Mutant | -5/Warlord Resources | -11 -10 -10 -9 -9 -9 -8 -8 -7 -7 -7 -7 -7 -7 -5 -5 -5 -5 ----------- Run | Scr Mat Min Mat Min Exi Min Mat Fac Gar Fac Sto Gar Rec Fac Upp Upp War Matter Collected 5695 | 231 42 52 250 339 100 209 1342 165 644 107 665 491 439 . 447 172 . Remotely . | . . . . . . . . . . . . . . . . . . Salvage Created 7342 | 89 43 114 736 342 . 81 2015 228 584 107 989 376 615 92 448 483 . Parts 392 | 3 2 5 58 16 . 10 113 9 42 4 48 23 30 5 14 10 . Haulers Intercepted 6 | . . . 1 . . . 3 . . . 2 . . . . . . Recyclers Shooed 4 | 2 . . . . . . 1 . . . . . 1 . . . . Parts Field Recycled . | . . . . . . . . . . . . . . . . . . Retrieved Matter . | . . . . . . . . . . . . . . . . . . Parts Self-Destructed 28 | . . . . . . . . . . . . . . . 12 16 . Prevented 9 | . . . . . . . . . . . . . . . 9 . . Kills | -11 -10 -10 -9 -9 -9 -8 -8 -7 -7 -7 -7 -7 -7 -5 -5 -5 -5 ------- Run | Scr Mat Min Mat Min Exi Min Mat Fac Gar Fac Sto Gar Rec Fac Upp Upp War Combat Hostiles Destroyed 157 | . 1 2 20 15 . 6 42 3 17 2 12 10 4 1 6 16 . Guns 121 | . 1 2 14 2 . 1 42 3 17 2 12 10 4 1 6 4 . Cannons 20 | . . . 6 9 . 5 . . . . . . . . . . . AOE 16 | . . . . 4 . . . . . . . . . . . 12 . Classes Destroyed 20 | 2 1 1 4 2 . . 2 1 2 . 2 1 1 . 1 . . Worker 6 | . . . 1 1 . 1 1 . . . 1 . . 1 . . . Builder 2 | . . . . . . . 1 . . . . . 1 . . . . Tunneler 1 | 1 . . . . . . . . . . . . . . . . . Hauler 6 | . . . 1 . . . 3 . . . 2 . . . . . . Recycler 13 | 1 . . . 2 . . . 1 . . 2 . 7 . . . . Operator 1 | . . . . . . . . 1 . . . . . . . . . Drone 4 | . . . . . . . . . . . . . 4 . . . . Watcher 3 | . . . 2 . . . 1 . . . . . . . . . . Swarmer 45 | . . . 10 5 . 6 10 . 7 . . 6 . . . 1 . Cutter 3 | . . . . . . . . . 3 . . . . . . . . Grunt 56 | . 1 . 7 1 . . 24 3 6 2 4 . . . . 8 . Brawler 6 | . . . . . . . . . . . . 2 . . 2 2 . Duelist 6 | . . . . 1 . . 1 . . . . . . . . 4 . Sentry 19 | . . 2 3 . . . 6 . . . 5 . . 1 1 1 . Specialist 2 | . . . . . . . . . . . 2 . . . . . . Hunter 4 | . . . . . . . . . . . 1 2 . . 1 . . Programmer 3 | . . . . . . . . . 1 . . . . . 2 . . Heavy 1 | . . . . . . . 1 . . . . . . . . . . Tinkerer 1 | . . . . . . . . . . . . . . . 1 . . Assembled 8 | . . . . 8 . . . . . . . . . . . . . Thug 1 | . . . . 1 . . . . . . . . . . . . . Best Kill Streak 19 | 1 1 2 6 8 . 3 19 3 6 2 9 7 5 2 3 9 . Combat Bots Only 17 | . 1 2 6 7 . 3 17 3 6 2 7 7 2 1 3 9 . Max Kills in Single Turn 3 | 1 1 2 2 2 . 2 2 1 2 1 2 2 3 2 1 3 . Gunslinging 1 | . . 1 1 . . . . . . . . . . . . . . Exploded 3 | . . . . 2 . . . . . . . . . . . 3 . Melee . | . . . . . . . . . . . . . . . . . . Uniques/NPCs Destroyed . | . . . . . . . . . . . . . . . . . . Combat | -11 -10 -10 -9 -9 -9 -8 -8 -7 -7 -7 -7 -7 -7 -5 -5 -5 -5 -------- Run | Scr Mat Min Mat Min Exi Min Mat Fac Gar Fac Sto Gar Rec Fac Upp Upp War Damage Taken 8569 | . 22 174 686 1323 . 140 1043 30 319 57 515 525 . 242 831 2425 237 Core 1644 | . 12 . 88 232 . 16 168 . 20 . 43 43 . 23 65 725 209 Absorbed by Shields 508 | . . . . . . . . 12 126 23 213 134 . . . . . Core Remaining (%) 72 | 100 . 95 . . . 16 69 . . . . . 84 . . . . Volleys Fired 339 | 7 4 5 32 22 . 9 86 7 37 6 39 23 12 5 20 25 . Largest 4 | 2 2 2 3 3 . 3 1 1 1 1 1 4 4 4 4 4 . Hottest 180 | 70 70 79 156 156 . 132 60 60 60 60 60 107 107 107 117 180 . Shots Fired 647 | 14 8 10 96 56 . 26 86 7 37 6 39 56 48 20 80 58 . Gun 531 | 14 8 10 65 13 . 8 86 7 37 6 39 56 48 20 80 34 . Cannon 97 | . . . 31 39 . 18 . . . . . . . . . 9 . Launcher 19 | . . . . 4 . . . . . . . . . . . 15 . Special . | . . . . . . . . . . . . . . . . . . Kinetic 548 | 7 4 5 48 45 . 17 86 7 37 6 39 56 48 20 80 43 . Thermal 80 | 7 4 5 48 7 . 9 . . . . . . . . . . . Explosive 19 | . . . . 4 . . . . . . . . . . . 15 . Electromagnetic . | . . . . . . . . . . . . . . . . . . Robot Hit Streak 35 | 6 6 16 23 6 . 4 12 8 14 6 16 35 5 10 21 27 . Robot Miss Streak 8 | 2 1 . 3 4 . 6 6 3 8 6 7 4 3 1 1 3 . Penetration Max 1 | . . . . . . . . . . . . . . . . 1 . Secondary Targets 7 | . . 1 3 . . . . . . . . 1 . . . 2 . Max Gunslinging Chain 1 | . . 1 1 . . . . . . . . 1 . . . 1 . Shots Hit Robots 486 | 11 7 10 53 40 . 13 82 7 33 4 34 50 14 16 62 50 . Core Hits 336 | 3 2 4 30 44 . 11 75 8 27 4 28 17 12 5 18 48 . Critical Kills 1 | . 1 . . . . . . . . . . . . . . . . Critical Parts Destroyed 3 | . . . . . . . . . . . . . . . 3 . . Critical Strikes 6 | . 1 1 1 . . . . . . . . . . . 3 . . Burn 2 | . . 1 1 . . . . . . . . . . . . . . Destroy 4 | . 1 . . . . . . . . . . . . . 3 . . Melee Attacks . | . . . . . . . . . . . . . . . . . . Impact . | . . . . . . . . . . . . . . . . . . Slashing . | . . . . . . . . . . . . . . . . . . Piercing . | . . . . . . . . . . . . . . . . . . Sneak Attacks . | . . . . . . . . . . . . . . . . . . Combat Hostiles . | . . . . . . . . . . . . . . . . . . Follow-up Attacks . | . . . . . . . . . . . . . . . . . . Damage Inflicted 16972 | 132 84 126 922 1011 . 330 4632 421 1561 238 1839 1059 416 355 1258 2588 . Guns 13441 | 132 84 126 530 139 . 30 4632 421 1561 238 1839 1059 416 355 1258 621 . Cannons 1392 | . . . 392 494 . 300 . . . . . . . . . 206 . Explosions 2130 | . . . . 369 . . . . . . . . . . . 1761 . Melee . | . . . . . . . . . . . . . . . . . . Ramming 9 | . . . . 9 . . . . . . . . . . . . . Kinetic 13805 | 69 33 61 342 551 . 143 4632 421 1561 238 1839 1059 416 355 1258 827 . Thermal 1028 | 63 51 65 580 82 . 187 . . . . . . . . . . . Explosive 2130 | . . . . 369 . . . . . . . . . . . 1761 . Electromagnetic . | . . . . . . . . . . . . . . . . . . Impact . | . . . . . . . . . . . . . . . . . . Slashing . | . . . . . . . . . . . . . . . . . . Piercing . | . . . . . . . . . . . . . . . . . . Highest Corruption 16 | . . . . 11 11 11 . . . . . 4 4 . 3 16 16 Average Corruption 6 | . . . . 10 11 11 . . . . . 4 4 . 2 4 16 Corruption Purged . | . . . . . . . . . . . . . . . . . . Effects 103 | . . . . 14 9 18 . . . . . 3 5 . 8 37 9 Message Errors 28 | . . . . 1 2 8 . . . . . 1 2 . 1 8 5 Matter Fused 27 | . . . . 4 5 3 . . . . . 2 2 . 2 9 . Heat Flow Errors 17 | . . . . 2 1 2 . . . . . . . . 3 8 1 Energy Discharges 5 | . . . . . . 1 . . . . . . 1 . 1 1 1 Parts Rejected 1 | . . . . . . . . . . . . . . . . 1 . Data Loss (minor) 13 | . . . . 2 . 1 . . . . . . . . 1 8 1 Data Loss (major) 4 | . . . . 1 . 2 . . . . . . . . . . 1 Misfires 2 | . . . . 2 . . . . . . . . . . . . . Alerts 4 | . . . . 2 1 . . . . . . . . . . 1 . Weapon Failures 2 | . . . . . . 1 . . . . . . . . . 1 . Overload Shots . | . . . . . . . . . . . . . . . . . . Overflow Damage 75 | . . . . 48 . 7 . . . . . . . . . 20 . Projectiles 11 | . . . . 4 . 7 . . . . . . . . . . . Explosions 64 | . . . . 44 . . . . . . . . . . . 20 . Melee . | . . . . . . . . . . . . . . . . . . Knockbacks 37 | . . . 2 23 . 7 . . . . . . . . . 5 . Impact . | . . . . . . . . . . . . . . . . . . Kinetic 30 | . . . 2 18 . 7 . . . . . . . . . 3 . Secondary 7 | . . . . 5 . . . . . . . . . . . 2 . Self-Inflicted Damage 394 | . . . . 54 . . . . . . . . . . . 340 . Shots 12 | . . . . 1 . . . . . . . . . . . 11 . Rammed 4 | . . . . 3 . . . . 1 . . . . . . . . Targets Rammed 4 | . . . . 3 . . . . 1 . . . . . . . . Kicked . | . . . . . . . . . . . . . . . . . . Crushed . | . . . . . . . . . . . . . . . . . . Highest Temperature 421 | 27 48 92 421 235 91 274 355 168 318 211 186 203 36 1 241 195 344 Average Temperature 99 | 12 23 49 162 62 53 108 120 69 105 109 55 45 13 1 69 65 164 Received Heat Transfer 1702 | . 12 54 204 88 . . 450 18 139 43 124 . . 45 36 489 . Effects 4 | . . . 2 . . . 2 . . . . . . . . . . Shutdowns 2 | . . . 1 . . . 1 . . . . . . . . . . Interference 1 | . . . . . . . 1 . . . . . . . . . . Damage (minor) 1 | . . . 1 . . . . . . . . . . . . . . Siege Activations . | . . . . . . . . . . . . . . . . . . Robots Corrupted . | . . . . . . . . . . . . . . . . . . Combat Hostiles . | . . . . . . . . . . . . . . . . . . Parts Fried . | . . . . . . . . . . . . . . . . . . Impact Corruptions . | . . . . . . . . . . . . . . . . . . Robots Melted . | . . . . . . . . . . . . . . . . . . Combat Hostiles . | . . . . . . . . . . . . . . . . . . Parts Melted 2 | . . 2 . . . . . . . . . . . . . . . Heat Transferred 2294 | 185 148 259 1295 148 . 259 . . . . . . . . . . . Parts Sabotaged . | . . . . . . . . . . . . . . . . . . Parts Stolen . | . . . . . . . . . . . . . . . . . . Parts Stripped . | . . . . . . . . . . . . . . . . . . Power Chain Reactions . | . . . . . . . . . . . . . . . . . . Missiles Intercepted . | . . . . . . . . . . . . . . . . . . Alert | -11 -10 -10 -9 -9 -9 -8 -8 -7 -7 -7 -7 -7 -7 -5 -5 -5 -5 ------- Run | Scr Mat Min Mat Min Exi Min Mat Fac Gar Fac Sto Gar Rec Fac Upp Upp War Peak Influence 951 | 10 56 76 473 256 . 147 837 361 638 385 439 515 369 951 . . . Initial 913 | . 6 21 29 177 . . 57 336 83 334 174 285 231 913 . . . Average 272 | 7 19 68 307 126 . 62 300 298 380 367 281 449 263 924 . . . Maximum Alert Level 3 | . . . 2 1 . . 3 1 2 1 2 2 1 3 . . . Low Security (%) 38 | 100 100 100 24 62 . 100 57 5 32 . 8 . 20 . . . . Level 1 39 | . . . 33 37 . . 11 94 17 100 84 20 79 . . . . Level 2 15 | . . . 41 . . . 10 . 49 . 7 79 . . . . . Level 3 5 | . . . . . . . 21 . . . . . . 100 . . . Level 4 . | . . . . . . . . . . . . . . . . . . Level 5 . | . . . . . . . . . . . . . . . . . . High Security . | . . . . . . . . . . . . . . . . . . Max Security . | . . . . . . . . . . . . . . . . . . Squads Dispatched 20 | . . . 4 . . . 8 1 . 2 3 . . 1 . 1 . Investigation 7 | . . . 1 . . . 3 1 . 1 . . . 1 . . . Extermination . | . . . . . . . . . . . . . . . . . . Reinforcement 9 | . . . 3 . . . 4 . . 1 1 . . . . . . Assault 1 | . . . . . . . . . . . . . . . . 1 . Garrison 3 | . . . . . . . 1 . . . 2 . . . . . . Intercept . | . . . . . . . . . . . . . . . . . . Construction Impeded 1 | . . . . . . . 1 . . . . . . . . . . Haulers Reinforced . | . . . . . . . . . . . . . . . . . . Active Scanning Responses . | . . . . . . . . . . . . . . . . . . Cargo Convoy Interrupts . | . . . . . . . . . . . . . . . . . . Stealth | -11 -10 -10 -9 -9 -9 -8 -8 -7 -7 -7 -7 -7 -7 -5 -5 -5 -5 --------- Run | Scr Mat Min Mat Min Exi Min Mat Fac Gar Fac Sto Gar Rec Fac Upp Upp War Distress Signals 8 | . 1 . 4 . . . 3 . . . . . . . . . . Communications Jammed . | . . . . . . . . . . . . . . . . . . Distress Signals . | . . . . . . . . . . . . . . . . . . Times Spotted 222 | . 6 2 33 30 . 6 49 4 16 3 16 10 18 1 6 20 2 Peak Tracking Total 16 | . 5 2 7 16 . 3 7 3 4 2 5 7 5 1 3 7 . Tactical Retreats 8 | . . . 1 3 . . . . 2 . 1 1 . . . . . Traps | -11 -10 -10 -9 -9 -9 -8 -8 -7 -7 -7 -7 -7 -7 -5 -5 -5 -5 ------- Run | Scr Mat Min Mat Min Exi Min Mat Fac Gar Fac Sto Gar Rec Fac Upp Upp War Traps Triggered 15 | . . . 1 2 . . 2 . 3 1 2 2 . . . . 2 Indirectly . | . . . . . . . . . . . . . . . . . . Trap Hack Attempts . | . . . . . . . . . . . . . . . . . . Triggered . | . . . . . . . . . . . . . . . . . . Disarmed . | . . . . . . . . . . . . . . . . . . Reprogrammed . | . . . . . . . . . . . . . . . . . . Reused . | . . . . . . . . . . . . . . . . . . Traps Extracted . | . . . . . . . . . . . . . . . . . . Installed . | . . . . . . . . . . . . . . . . . . Triggered 2 | . . . . . . . . . . . . . . . 2 . . Machines | -11 -10 -10 -9 -9 -9 -8 -8 -7 -7 -7 -7 -7 -7 -5 -5 -5 -5 ---------- Run | Scr Mat Min Mat Min Exi Min Mat Fac Gar Fac Sto Gar Rec Fac Upp Upp War Machines Disabled 17 | . . . . 1 . . 9 . 2 . 1 1 1 . 1 1 . Max in Single Turn 1 | . . . . 1 . . 1 . 1 . 1 1 1 . 1 1 . Machines Sabotaged . | . . . . . . . . . . . . . . . . . . Garrisons Compromised . | . . . . . . . . . . . . . . . . . . Overloaded Fab Kills . | . . . . . . . . . . . . . . . . . . Hacking | -11 -10 -10 -9 -9 -9 -8 -8 -7 -7 -7 -7 -7 -7 -5 -5 -5 -5 --------- Run | Scr Mat Min Mat Min Exi Min Mat Fac Gar Fac Sto Gar Rec Fac Upp Upp War Machines Accessed 20 | . . . 1 1 2 . 4 3 . 1 4 . 3 1 . . . Terminals 14 | . . . 1 . . . 4 1 . 1 3 . 3 1 . . . Fabricators 1 | . . . . . . . . 1 . . . . . . . . . Repair Stations . | . . . . . . . . . . . . . . . . . . Recycling Units . | . . . . . . . . . . . . . . . . . . Scanalyzers . | . . . . . . . . . . . . . . . . . . Garrison Access 2 | . . . . . . . . 1 . . 1 . . . . . . Total Hacks 69 | . . . 2 1 24 . 12 6 . 2 5 . 14 3 . . . Successful 46 | . . . 1 1 24 . 7 4 . . 4 . 4 1 . . . Failed 23 | . . . 1 . . . 5 2 . 2 1 . 10 2 . . . Catastrophic 5 | . . . . . . . 2 . . 1 . . 1 1 . . . Database Lockouts . | . . . . . . . . . . . . . . . . . . Manual 33 | . . . 2 . 1 . 12 4 . 2 2 . 10 . . . . Terminals 41 | . . . 2 . . . 12 4 . 2 4 . 14 3 . . . Fabricators 1 | . . . . . . . . 1 . . . . . . . . . Repair Stations . | . . . . . . . . . . . . . . . . . . Recycling Units . | . . . . . . . . . . . . . . . . . . Scanalyzers . | . . . . . . . . . . . . . . . . . . Garrison Access 2 | . . . . . . . . 1 . . 1 . . . . . . Terminal Hacks 34 | . . . . 1 24 . 3 1 . . 2 . 2 1 . . . Record 24 | . . . . . 23 . . . . . . . 1 . . . . Robot Analysis 1 | . . . . . . . . . . . . . . 1 . . . Open Door 3 | . . . . 1 . . . . . . 2 . . . . . . Unreport Threat 5 | . . . . . . . 3 1 . . . . 1 . . . . EX-Prototype ID Bank 1 | . . . . . 1 . . . . . . . . . . . . Fabricator Hacks 1 | . . . . . . . . 1 . . . . . . . . . Build 1 | . . . . . . . . 1 . . . . . . . . . Repair Station Hacks . | . . . . . . . . . . . . . . . . . . Recycling Unit Hacks . | . . . . . . . . . . . . . . . . . . Scanalyzer . | . . . . . . . . . . . . . . . . . . Garrison Access Hacks 2 | . . . . . . . . 1 . . 1 . . . . . . Unlock Access 2 | . . . . . . . . 1 . . 1 . . . . . . Unauthorized Hacks 9 | . . . 1 . . . 4 1 . . 1 . 2 . . . . Terminals 9 | . . . 1 . . . 4 1 . . 1 . 2 . . . . Botnet 9 | . . . 1 . . . 4 1 . . 1 . 2 . . . . Fabricators . | . . . . . . . . . . . . . . . . . . Repair Stations . | . . . . . . . . . . . . . . . . . . Recycling Units . | . . . . . . . . . . . . . . . . . . Scanalyzers . | . . . . . . . . . . . . . . . . . . Garrison Access . | . . . . . . . . . . . . . . . . . . Data Cores Recovered 1 | . . . . . . . . 1 . . . . . . . . . Used . | . . . . . . . . . . . . . . . . . . Hacking Detections 14 | . . . 1 . . . 4 3 . 1 2 . 2 1 . . . Full Trace Events 5 | . . . . . . . 2 1 . 1 . . . 1 . . . Feedback Events . | . . . . . . . . . . . . . . . . . . Feedback Blocked . | . . . . . . . . . . . . . . . . . . Robot Schematics Acquired . | . . . . . . . . . . . . . . . . . . Robots Built . | . . . . . . . . . . . . . . . . . . Authchips . | . . . . . . . . . . . . . . . . . . Time . | . . . . . . . . . . . . . . . . . . Total Robot Build Rating . | . . . . . . . . . . . . . . . . . . Part Schematics Acquired . | . . . . . . . . . . . . . . . . . . Parts Built 2 | . . . . . . . . 2 . . . . . . . . . Authchips . | . . . . . . . . . . . . . . . . . . Time 47 | . . . . . . . . 47 . . . . . . . . . Total Part Build Rating 10 | . . . . . . . . 10 . . . . . . . . . Parts Repaired . | . . . . . . . . . . . . . . . . . . Time . | . . . . . . . . . . . . . . . . . . Parts Recycled . | . . . . . . . . . . . . . . . . . . Recycled Matter . | . . . . . . . . . . . . . . . . . . Retrieved Matter . | . . . . . . . . . . . . . . . . . . Retrieved Components . | . . . . . . . . . . . . . . . . . . Parts Scanalyzed . | . . . . . . . . . . . . . . . . . . Part Schematics Acquired . | . . . . . . . . . . . . . . . . . . Parts Damaged . | . . . . . . . . . . . . . . . . . . Bothacking | -11 -10 -10 -9 -9 -9 -8 -8 -7 -7 -7 -7 -7 -7 -5 -5 -5 -5 ------------ Run | Scr Mat Min Mat Min Exi Min Mat Fac Gar Fac Sto Gar Rec Fac Upp Upp War Used RIF Installer 2 | . . . . . . . . . 1 . . 1 . . . . . Zone Cloak 1 | . . . . . . . . . . . . 1 . . . . . Robots Hacked . | . . . . . . . . . . . . . . . . . . Non-combat . | . . . . . . . . . . . . . . . . . . Combat . | . . . . . . . . . . . . . . . . . . Robot Hacks Applied . | . . . . . . . . . . . . . . . . . . Relay Couplers Released . | . . . . . . . . . . . . . . . . . . Robots Rewired . | . . . . . . . . . . . . . . . . . . Allies Hacked . | . . . . . . . . . . . . . . . . . . Hacks Repelled . | . . . . . . . . . . . . . . . . . . Allies | -11 -10 -10 -9 -9 -9 -8 -8 -7 -7 -7 -7 -7 -7 -5 -5 -5 -5 -------- Run | Scr Mat Min Mat Min Exi Min Mat Fac Gar Fac Sto Gar Rec Fac Upp Upp War Total Allies 3 | . . . . 2 . . . . . . . . . . . 1 . Largest Group 2 | . . . . 2 . . . . . . . . . . . 1 . Highest-Rated Group 165 | . . . . 50 . . . . . . . . . . . 165 . Highest-Rated Ally 165 | . . . . 31 . . . . . . . . . . . 165 . Total Orders . | . . . . . . . . . . . . . . . . . . Ally Attacks 10 | . . . . 6 . . . . . . . . . . . 4 . Total Damage 220 | . . . . 65 . . . . . . . . . . . 155 . Kills 6 | . . . . 2 . . . . . . . . . . . 4 . Allies Corrupted . | . . . . . . . . . . . . . . . . . . Allies Melted . | . . . . . . . . . . . . . . . . . . Intel | -11 -10 -10 -9 -9 -9 -8 -8 -7 -7 -7 -7 -7 -7 -5 -5 -5 -5 ------- Run | Scr Mat Min Mat Min Exi Min Mat Fac Gar Fac Sto Gar Rec Fac Upp Upp War Robot Analysis Total 1 | . . . . . . . . . . . . . . 1 . . . Derelict Logs Recovered 4 | . . . . 1 . . . . . . . . . . 1 2 . Drone Launches . | . . . . . . . . . . . . . . . . . . Drone Recoveries . | . . . . . . . . . . . . . . . . . . Exploration | -11 -10 -10 -9 -9 -9 -8 -8 -7 -7 -7 -7 -7 -7 -5 -5 -5 -5 ------------- Run | Scr Mat Min Mat Min Exi Min Mat Fac Gar Fac Sto Gar Rec Fac Upp Upp War Turns Passed 9188 | 80 133 120 633 865 317 396 816 424 510 239 544 303 502 153 761 2030 362 Spaces Moved 3864 | 48 116 58 281 492 266 282 527 164 192 95 192 123 191 65 287 433 52 Core 101 | . . . . 3 . . . . . . . . . . . 46 52 Treads 2516 | . . 52 281 425 . . 62 164 192 95 192 123 191 65 287 387 . Legs 97 | 48 49 . . . . . . . . . . . . . . . . Wheels 1150 | . 67 6 . 64 266 282 465 . . . . . . . . . . Hover . | . . . . . . . . . . . . . . . . . . Flight . | . . . . . . . . . . . . . . . . . . Fastest Speed 80 | 120 80 80 160 115 115 130 115 241 241 241 241 161 241 163 241 410 700 Average Speed 212 | 120 97 151 160 155 116 130 132 241 241 241 245 193 241 175 241 448 700 Slowest Speed 950 | 120 120 160 160 300 130 130 410 241 241 250 250 241 241 241 241 950 700 Overloaded Moves . | . . . . . . . . . . . . . . . . . . Propulsion Burnouts . | . . . . . . . . . . . . . . . . . . Robots Hopped 1 | . . . . 1 . . . . . . . . . . . . . Cave-ins Triggered 1 | . . . . 1 . . . . . . . . . . . . . Exploration Rate (%) 36 | 3 30 9 33 79 61 61 62 4 41 4 39 33 59 2 52 69 17 Regions Visited 17 Branch Regions 9 Pre-discovered Areas 2 | . . . . . 1 . . . . . . . . . . 1 . Known Exits Taken 3 | . . . . . . . . 1 . . 1 . . . 1 . . Unknown Exits Taken 12 | 1 1 1 1 1 1 1 1 . . 1 . . 1 1 . 1 . Scrap Searched 7 | . . . . 2 . 1 . . . . . . . . 2 2 . Spaces Dug . | . . . . . . . . . . . . . . . . . . Terrain Destroyed 204 | . . . . 16 . 2 76 . . 1 35 . . . 4 70 . Melee . | . . . . . . . . . . . . . . . . . . Projectile 120 | . . . . . . 2 76 . . 1 35 . . . 4 2 . AOE 84 | . . . . 16 . . . . . . . . . . . 68 . Terrain Rammed . | . . . . . . . . . . . . . . . . . . Walls Destroyed . | . . . . . . . . . . . . . . . . . . Machines Disabled . | . . . . . . . . . . . . . . . . . . Actions | -11 -10 -10 -9 -9 -9 -8 -8 -7 -7 -7 -7 -7 -7 -5 -5 -5 -5 --------- Run | Scr Mat Min Mat Min Exi Min Mat Fac Gar Fac Sto Gar Rec Fac Upp Upp War Total 4543 | 56 128 82 400 542 274 291 647 194 239 106 268 161 204 94 317 488 52 Wait 133 | . . 8 45 . . . 2 9 4 . 12 5 . 17 8 23 . Move 3847 | 47 115 57 280 489 265 281 526 164 191 94 192 122 190 64 286 432 52 Hop 1 | . . . . 1 . . . . . . . . . . . . . Pick Up 52 | 1 2 2 6 6 2 1 13 6 . 1 7 2 1 1 1 . . Fast Attach 33 | 1 3 2 6 8 . . 5 . . 2 2 . . 2 2 . . Attach 30 | . . . 3 5 . . 3 3 . . . 4 1 3 . 8 . Detach 4 | . . . . 1 . . 3 . . . . . . . . . . Swap 22 | . . 2 10 1 2 . 1 1 . 1 3 . . 1 . . . Drop 66 | . 4 6 18 6 5 . 8 4 . 2 11 1 . 1 . . . Fire 339 | 7 4 5 32 22 . 9 86 7 37 6 39 23 12 5 20 25 . Melee . | . . . . . . . . . . . . . . . . . . Ram . | . . . . . . . . . . . . . . . . . . Kick . | . . . . . . . . . . . . . . . . . . Crush 4 | . . . . 3 . . . . 1 . . . . . . . . Escape Stasis 12 | . . . . . . . . . 6 . 2 4 . . . . . Rewire . | . . . . . . . . . . . . . . . . . . Trap . | . . . . . . . . . . . . . . . . . . Miscellaneous . | . . . . . . . . . . . . . . . . . . Route ------- -11/Scrapyard -10/Materials -10/Mines -9/Materials -9/Mines (discovered 2 exits: *Mat / *Exi) -9/Exiles -8/Mines -8/Materials -7/Factory (discovered 2 exits: *Sto / Gar) -7/Garrison -7/Factory -7/Storage -7/Garrison -7/Recycling -5/Factory (discovered 2 exits: [*Fac] / [*Upp]) -5/Upper Caves -5/Upper Caves (discovered 2 exits: [*War] / [*Fac]) -5/Warlord History --------- Turn | Location | Event 1 | -11/Scrapyard | Discovered new exit (range 1) 81 | -11/Scrapyard | Entered Materials 173 | -10/Materials | Discovered new exit (range 10) 214 | -10/Materials | Entered Mines 327 | -10/Mines | Discovered new exit (range 5) 334 | -10/Mines | Entered Materials 334 | -9/Materials | Evolved 2 slots: Utility x1, Weapon x1 908 | -9/Materials | Build established: Gunner 939 | -9/Materials | Discovered new exit (range 15) 967 | -9/Materials | Entered Mines 988 | -9/Mines | Learned Materials stockpile data 1096 | -9/Mines | Discovered new exit (range 10) 1401 | -9/Mines | Assembled infested the area 1426 | -9/Mines | Crushed by falling debris 1426 | -9/Mines | System corruption reached 10% 1428 | -9/Mines | Core integrity fell below 50% 1466 | -9/Mines | Destroyed 7 combat bots 1470 | -9/Mines | Lost 7 parts (1p2n2u2w) 1503 | -9/Mines | Found a hidden stash of uninstalled traps 1743 | -9/Mines | Met a Derelict who couldn't figure out how to use a Trap Extractor 1825 | -9/Mines | Deemed a non-threat by the Exiles lab entrance 1825 | -9/Mines | Discovered new exit (range 5) 1832 | -9/Mines | Entered Exiles 1864 | -9/Exiles | Met 8R-AWN 1881 | -9/Exiles | Met EX-HEX 1913 | -9/Exiles | Met EX-BIN 1927 | -9/Exiles | Aligned with FarCom system 1928 | -9/Exiles | Given EX-Vault access code 1967 | -9/Exiles | Opened EX-Vault 1977 | -9/Exiles | Found XL Autogun Array 2001 | -9/Exiles | Warned to stay clear of 0b10 Research branches 2036 | -9/Exiles | Met EX-DEC 2049 | -9/Exiles | Learned location of Zion (-6) 2132 | -9/Exiles | Discovered new exit (range 14) 2149 | -9/Exiles | Left Exiles lab with XL Autogun Array 2149 | -9/Exiles | Entered Mines 2450 | -8/Mines | Build established: Skirmisher 2490 | -8/Mines | Discovered new exit (range 11) 2496 | -8/Mines | Core integrity fell below 20% 2545 | -8/Mines | Entered Materials 2545 | -8/Materials | Evolved 2 slots: Propulsion x1, Weapon x1 3169 | -8/Materials | Garrison activated, responded to threat 3225 | -8/Materials | Destroyed 17 combat bots 3299 | -8/Materials | Discovered new exit (range 16) 3361 | -8/Materials | Entered Factory 3361 | -7/Factory | Evolved 2 slots: Utility x2 3661 | -7/Factory | Fabricated Matter Compressor (x2) 3702 | -7/Factory | Discovered new exit (range 5) 3711 | -7/Factory | Build established: Tank 3785 | -7/Factory | Identified exit to Garrison 3785 | -7/Factory | Entered Garrison 3926 | -7/Garrison | Triggered checkpoint 4038 | -7/Garrison | Triggered checkpoint 4099 | -7/Garrison | Triggered checkpoint 4225 | -7/Garrison | Discovered new exit (range 17) 4286 | -7/Garrison | Installed Relay Interface Framework 4295 | -7/Garrison | Entered Factory 4522 | -7/Factory | Discovered new exit (range 5) 4534 | -7/Factory | Entered Storage 4891 | -7/Storage | Garrison activated, responded to threat 4966 | -7/Storage | Destroyed 7 combat bots 5046 | -7/Storage | Build established: Skirmisher 5078 | -7/Storage | Identified exit to Garrison 5078 | -7/Storage | Entered Garrison 5124 | -7/Garrison | Triggered checkpoint 5168 | -7/Garrison | Destroyed 7 combat bots 5344 | -7/Garrison | Discovered new exit (range 10) 5374 | -7/Garrison | Expanded RIF knowledge: Zone Cloak 5381 | -7/Garrison | Entered Recycling 5433 | -7/Recycling | Spotter reported a threat 5442 | -7/Recycling | Spotter reported a threat 5465 | -7/Recycling | Spotter reported a threat 5473 | -7/Recycling | Spotter reported a threat 5486 | -7/Recycling | Spotter reported a threat 5495 | -7/Recycling | Spotter reported a threat 5508 | -7/Recycling | Spotter reported a threat 5518 | -7/Recycling | Spotter reported a threat 5520 | -7/Recycling | Spotter reported a threat 5533 | -7/Recycling | Spotter reported a threat 5580 | -7/Recycling | Spotter reported a threat 5629 | -7/Recycling | Spotter reported a threat 5638 | -7/Recycling | Spotter reported a threat 5641 | -7/Recycling | Spotter reported a threat 5668 | -7/Recycling | Spotter reported a threat 5671 | -7/Recycling | Spotter reported a threat 5674 | -7/Recycling | Spotter reported a threat 5687 | -7/Recycling | Spotter reported a threat 5691 | -7/Recycling | Spotter reported a threat 5777 | -7/Recycling | Spotter reported a threat 5842 | -7/Recycling | Discovered new exit (range 17) 5877 | -7/Recycling | Spotter reported a threat 5883 | -7/Recycling | Entered Factory 5883 | -5/Factory | Evolved 4 slots: Propulsion x1, Utility x3 5965 | -5/Factory | Discovered new exit (range 16) 6027 | -5/Factory | Discovered new exit (range 20) 6036 | -5/Factory | Entered Upper Caves 6077 | -5/Upper Caves | Identified exit to Upper Caves 6188 | -5/Upper Caves | Build established: Gunner 6219 | -5/Upper Caves | Attracted the attention of an 0b10 checkpoint 6797 | -5/Upper Caves | Entered another Upper Caves area 6842 | -5/Upper Caves | Lost 3 parts (2n1u) 8400 | -5/Upper Caves | Attracted the attention of an 0b10 outpost 8449 | -5/Upper Caves | Destroyed 9 combat bots 8452 | -5/Upper Caves | Lost 5 parts (1p1n3w) 8582 | -5/Upper Caves | Core integrity fell below 50% 8582 | -5/Upper Caves | System corruption reached 10% 8602 | -5/Upper Caves | Core integrity fell below 20% 8638 | -5/Upper Caves | Lost 12 parts (1p6u5w) 8716 | -5/Upper Caves | Build established: Mutant 8792 | -5/Upper Caves | P1-3CE showed up to help 8792 | -5/Upper Caves | Discovered new exit (range 5) 8799 | -5/Upper Caves | Learned Factory terminal intel 8807 | -5/Upper Caves | P1-3CE revealed a hidden path 8827 | -5/Upper Caves | Entered Warlord 9079 | -5/Warlord | System corruption cleaned by Quarantine Array 9101 | -5/Warlord | RIF detected upon attempting to enter Warlord's base 9101 | -5/Warlord | Attacked by Warlord forces 9184 | -5/Warlord | Spotted CW-VPJ(B) 9184 | -5/Warlord | Spotted OJ-FHP(B) 9189 | -5/Warlord | Destroyed by OJ-FHP(B) with Slug Cannon Last Messages --------------- 08825_ BXPMLPIV|A/|J8U8E PJ2K KZTD LOCATION=UNKNOWN GOAL=ESCAPE 08876_ 3A| VCP8HM,F678DEUSDK4S 08899_ System corrupted: Substantial component data lost. 08921_ UC8& LUKLDDKXTF5/W<5V&B N= 08953_ 1TP<,2R 9FZ4:HCU,ABVY65DTNT 08970_ System corrupted: Component data lost. 08990_ IDYC8XST:AQNHTKUU2RW13 09025_ System corrupted: Heat flow error (+153). 09046_ System corrupted: Energy discharge (-28). 09073_ #WFIY CO BH |ASIY V